Cogmind - Beta 14 *** ADVENTURER MODE // 2024.08.07 @ 21:30:45 Player: C23 Result: Core destroyed Performance ------------- Evolutions (5) 2500 Regions Visited (8) 1600 Robots Destroyed (146) 730 Value Destroyed (5064) 5064 Prototype IDs (20) 400 Alien Tech Used (0) 0 Bonus (565) 565 TOTAL SCORE: 10859 Bonus ------- High Alert Combat Kills 97 Entered DSFs 500 Friendly Fire -32 Cogmind --------- Core Integrity 0/1000 Matter 121/300 Energy 576/720 System Corruption 5% Temperature Critical (1046) Movement Walking (260) Ox2 Location -5/DSF Parts ------- > --- POWER (2) -------- Light Fission Core Reinforced Fission Core > --- PROPULSION (5) --- Carbon-fiber Leg Carbon-fiber Leg Flexi-carbon Leg Nuclear Pulse Array > --- UTILITY (6) ------ Energy Well Improved Targeting Computer Advanced ECM Suite > --- WEAPON (4) ------- Heavy Mass Driver Long-range Missile Launcher > --- INVENTORY (5) ---- Reinforced Fission Core Peak State ------------ > --- POWER ------------ Light Nuclear Core > --- PROPULSION ------- Gravmag System Nuclear Pulse Array Nuclear Pulse Array > --- UTILITY ---------- Energy Well Advanced Sensor Array Core Analyzer Advanced ECM Suite Gun Armor Hacking Suite > --- WEAPON ----------- Axe Spear > --- INVENTORY -------- Nuclear Pulse Array Nuclear Pulse Array Long-range Missile Launcher [Rating: 70] Favorites ----------- Power Neutrino Core Engine Ion Engine Power Core Neutrino Core Propulsion Spiked Treads Treads Spiked Treads Leg Aluminum Leg Hover Unit Gravmag System Flight Unit Improved Flight Unit Utility Large Storage Unit Device Cloaking Device Storage Large Storage Unit Processor Core Analyzer Hackware Hacking Suite Protection Light Armor Plating Weapon Light Assault Rifle Energy Gun EM Pulse Gun Energy Cannon Improved EM Pulse Cannon Ballistic Gun Light Assault Rifle Ballistic Cannon Heavy Mass Driver Launcher Grenade Launcher Special Weapon Remote Datajack Slashing Weapon Chainsword Piercing Weapon Spear Special Melee Weapon Improved Datajack Build | -11 -10 -10 -10 -8 -7 -6 -5 -5 ------- Run | Yrd Mat Min Sub Mat Fac Fac Fac DSF Slots Evolved 10 | . . . . 4 2 2 2 . Power 1 | . . . . . . 1 . . Propulsion 3 | . . . . 2 . . 1 . Utility 4 | . . . . 1 2 1 . . Weapon 2 | . . . . 1 . . 1 . Parts Attached 135 | 6 8 1 14 23 33 34 1 15 Power 20 | 1 1 . 1 2 3 10 . 2 Engine 11 | 1 1 . . 1 2 6 . . Core 9 | . . . 1 1 1 4 . 2 Reactor . | . . . . . . . . . Propulsion 53 | 2 2 . 5 9 10 16 1 8 Treads 7 | 2 . . 2 3 . . . . Leg 10 | . 2 . 3 2 . . . 3 Wheel . | . . . . . . . . . Hover 15 | . . . . . 5 9 . 1 Flight 21 | . . . . 4 5 7 1 4 Utility 29 | 1 3 . 4 2 11 5 . 3 Device 8 | . . . . . 3 3 . 2 Storage 6 | 1 1 . 1 . 1 2 . . Processor 2 | . . . . . 1 . . 1 Hackware 3 | . . . . . 3 . . . Protection 10 | . 2 . 3 2 3 . . . Artifact . | . . . . . . . . . Weapon 33 | 2 2 1 4 10 9 3 . 2 Energy Gun 1 | 1 . . . . . . . . Energy Cannon 4 | . . . . 4 . . . . Ballistic Gun 7 | 1 1 . 2 3 . . . . Ballistic Cannon 1 | . . . . . . . . 1 Launcher 12 | . 1 1 2 3 4 . . 1 Special Weapon 4 | . . . . . 4 . . . Impact Weapon . | . . . . . . . . . Slashing Weapon 2 | . . . . . 1 1 . . Piercing Weapon 1 | . . . . . . 1 . . Special Melee Weapon 1 | . . . . . . 1 . . Unidentified Prototypes 3 | . . . . 2 1 . . . Corrupted Parts 3 | . . . . 3 . . . . System Corruption 13 | . . . . 13 . . . . Parts Lost 63 | . 3 . 7 3 11 28 . 11 Power 12 | . 1 . . 1 1 8 . 1 Propulsion 26 | . 1 . 1 2 4 14 . 4 Utility 15 | . 1 . 1 . 5 4 . 4 Weapon 10 | . . . 5 . 1 2 . 2 Highest Loss Streak 11 | . 1 . 4 1 3 6 . 11 To Critical Strikes 2 | . . . . . . 2 . . Average Slot Usage (%) 84 | . 87 100 85 87 72 79 . 54 Engine 5 | . 12 14 . . 6 3 . . Core 6 | . . . 13 6 . 7 . 7 Treads 11 | . 9 . 20 17 . . . . Leg 7 | . 9 28 7 4 . . . 5 Hover 1 | . . . . . 1 12 . 2 Flight 3 | . . . . 6 23 5 . 5 Storage 8 | . 14 14 8 . 1 5 . 5 Hackware 1 | . . . . . 9 6 . 1 Protection 10 | . 12 14 8 14 14 9 . 1 Energy Cannon 1 | . . . . 17 . . . . Ballistic Gun 10 | . 15 14 13 11 . . . . Launcher 8 | . 11 14 12 5 1 . . 2 Slashing Weapon 1 | . . . . . 6 4 . 1 Peak Build Rating 70 | 6 8 9 23 44 48 65 42 70 Average Rating 23 | 4 6 8 17 37 34 55 42 53 On Entrance 23 | . 6 8 9 16 43 48 40 42 Naked Turns . | . . . . . . . . . Heaviest Build 219 | 13 32 33 219 65 40 39 19 64 Greatest Support 80 | 40 40 20 40 80 27 38 24 50 Greatest Overweight (x) 16 | . 10 1 14 10 4 7 . 16 Average Overweight (x) . | . 1 1 . . . . . 1 Largest Inventory Capacity 35 | 8 15 15 35 5 5 5 5 5 Average Capacity 12 | 6 14 15 18 5 5 5 5 5 Most Carried 17 | 5 11 12 17 5 5 5 1 5 Average Carried 7 | 1 7 11 10 3 4 3 1 2 Final Capacity 15 | 8 15 15 5 5 5 5 5 5 Final Carried 12 | 1 10 12 5 5 4 2 1 1 Class Distribution -------------------- 48% | Mutant 16% | Hacker-Mutant 14% | Hauler-Mutant 7% | Scavenger-Mutant 6% | Scavenger-Tank 3% | Tank Dominant Class ---------------- Mutant | -10/Materials Mutant | -10/Mines Mutant | -10/Subcaves Scavenger-Tank | -8/Materials Hacker-Mutant | -7/Factory Hacker-Mutant | -6/Factory Hacker-Mutant | -5/Factory Scavenger-Gunner | -5/DSF Resources | -11 -10 -10 -10 -8 -7 -6 -5 -5 ----------- Run | Yrd Mat Min Sub Mat Fac Fac Fac DSF Matter Collected 2682 | 235 271 47 527 363 488 490 . 261 Remotely . | . . . . . . . . . Salvage Created 4842 | . 488 23 364 1125 760 1586 . 496 Parts 295 | . 32 1 19 81 49 92 . 21 Haulers Intercepted 2 | . . . . . 2 . . . Recyclers Shooed 3 | . 2 . . 1 . . . . Parts Field Recycled . | . . . . . . . . . Retrieved Matter . | . . . . . . . . . Parts Self-Destructed 10 | . . . 10 . . . . . Prevented . | . . . . . . . . . Kills | -11 -10 -10 -10 -8 -7 -6 -5 -5 ------- Run | Yrd Mat Min Sub Mat Fac Fac Fac DSF Combat Hostiles Destroyed 115 | . 17 3 18 18 15 33 . 11 Melee 44 | . . . . . 10 33 . 1 Guns 19 | . 8 1 2 8 . . . . Cannons 13 | . . . . 6 . . . 7 AOE 39 | . 9 2 16 4 5 . . 3 Classes Destroyed 19 | . 5 . 2 5 4 1 . 2 Worker 4 | . . . . 3 1 . . . Builder 6 | . . . . 5 1 . . . Tunneler 1 | . . . . 1 . . . . Hauler 2 | . . . . . 2 . . . Recycler 4 | . 1 . . 1 2 . . . Mechanic 1 | . . . . . 1 . . . Operator 2 | . . . . . 1 1 . . Turret 2 | . . . 2 . . . . . Watcher 9 | . 3 . . 5 1 . . . Swarmer 34 | . 8 3 5 3 5 10 . . Grunt 40 | . 6 . . 10 6 11 . 7 Brawler 3 | . . . . . . 2 . 1 Duelist 2 | . . . . 1 . 1 . . Sentry 6 | . . . 1 3 1 1 . . Specialist 1 | . . . . . . . . 1 Hunter 7 | . . . . 1 1 4 . 1 Programmer 6 | . . . . . 2 4 . . Heavy 1 | . . . . . . . . 1 Subdweller 15 | . 3 . 12 . . . . . Best Kill Streak 8 | . 3 2 4 7 8 5 . 6 Combat Bots Only 6 | . 3 2 4 4 5 5 . 6 Max Kills in Single Turn 4 | . 2 2 2 4 2 1 . 2 Gunslinging 1 | . 1 . . 1 . . . . Exploded 2 | . 2 2 2 1 2 . . 2 Melee 1 | . . . . . 1 1 . 1 Uniques/NPCs Destroyed . | . . . . . . . . . Combat | -11 -10 -10 -10 -8 -7 -6 -5 -5 -------- Run | Yrd Mat Min Sub Mat Fac Fac Fac DSF Hostile Shots Fired 906 | . 61 3 130 83 166 345 . 118 Missed 291 | . 27 . 53 22 56 99 . 34 Damage Taken 8818 | . 535 32 1106 876 1319 2701 . 2249 Core 2163 | . 25 8 117 92 314 499 . 1108 Absorbed by Shields 260 | . . . . . . 260 . . Redirected to Shielding 50 | . . . 2 . 48 . . . Ignored by Resistances 2702 | . 156 10 309 251 389 1091 . 496 Regen/Repaired (Parts) 340 | . 43 . . 45 91 161 . . Core Remaining (%) 63 | 100 . . 40 83 55 41 . . Volleys Fired 194 | . 47 4 55 53 17 7 . 11 Largest 5 | . 2 2 2 5 1 1 . 2 Hottest 296 | . 60 53 53 296 39 5 . 118 Shots Fired 323 | . 79 5 83 115 17 7 . 17 Gun 182 | . 65 4 48 65 . . . . Cannon 43 | . . . . 32 . . . 11 Launcher 82 | . 14 1 35 18 8 . . 6 Special 16 | . . . . . 9 7 . . Kinetic 186 | . 58 4 48 65 . . . 11 Thermal . | . . . . . . . . . Explosive 73 | . 14 1 35 9 8 . . 6 Electromagnetic 48 | . 7 . . 41 . . . . Robot Hit Streak 24 | . 24 2 17 18 10 7 . 13 Robot Miss Streak 3 | . 3 1 3 1 1 . . 1 Penetration Max 1 | . . . . . . . . 1 Secondary Targets 3 | . 2 . . 1 . . . . Max Gunslinging Chain 1 | . 1 . . 1 . . . . Shots Hit Robots 406 | . 61 3 63 76 51 121 . 31 Core Hits 242 | . 36 4 41 50 35 54 . 22 Critical Kills . | . . . . . . . . . Critical Parts Destroyed . | . . . . . . . . . Critical Strikes 25 | . . . . 1 5 17 . 2 Blast 2 | . . . . . . . . 2 Corrupt 1 | . . . . 1 . . . . Sever 18 | . . . . . 5 13 . . Impale 4 | . . . . . . 4 . . Melee Attacks 188 | . . . . . 44 127 . 17 Impact . | . . . . . . . . . Slashing 136 | . . . . . 44 77 . 15 Piercing 51 | . . . . . . 49 . 2 Sneak Attacks 9 | . . . . . 4 5 . . Combat Hostiles 3 | . . . . . . 3 . . Follow-up Attacks 4 | . . . . . . 3 . 1 Damage Inflicted 14029 | . 1321 55 2497 2110 2347 3878 . 1821 Guns 1238 | . 429 12 258 539 . . . . Cannons 1552 | . . . . 740 . . . 812 Explosions 5487 | . 892 43 2239 831 803 . . 679 Melee 5752 | . . . . . 1544 3878 . 330 Ramming . | . . . . . . . . . Kinetic 1971 | . 350 12 258 539 . . . 812 Thermal 75 | . 75 . . . . . . . Explosive 5202 | . 817 43 2239 621 803 . . 679 Electromagnetic 1029 | . 79 . . 950 . . . . Impact . | . . . . . . . . . Slashing 4585 | . . . . . 1544 2752 . 289 Piercing 1167 | . . . . . . 1126 . 41 Highest Corruption 15 | . . . . 15 2 11 . 5 Average Corruption 5 | . . . . 7 1 3 . 5 Corruption Purged . | . . . . . . . . . Corruption Blocked . | . . . . . . . . . Effects 46 | . . . . 29 1 12 . 4 Message Errors 14 | . . . . 7 . 5 . 2 Matter Fused 10 | . . . . 6 . 4 . . Heat Flow Errors 3 | . . . . 3 . . . . Energy Discharges 4 | . . . . 1 1 1 . 1 Parts Rejected 1 | . . . . 1 . . . . Data Loss (minor) 7 | . . . . 5 . 2 . . Data Loss (major) 2 | . . . . 2 . . . . Misfires 1 | . . . . 1 . . . . Alerts 2 | . . . . 1 . . . 1 Weapon Failures 2 | . . . . 2 . . . . Overload Shots . | . . . . . . . . . Overflow Damage 445 | . 16 . 18 12 173 162 . 64 Projectiles 40 | . . . . 8 . . . 32 Explosions 105 | . 16 . 18 4 35 . . 32 Melee 300 | . . . . . 138 162 . . Knockbacks 4 | . . . . . . . . 4 Impact . | . . . . . . . . . Kinetic 3 | . . . . . . . . 3 Secondary 1 | . . . . . . . . 1 Self-Inflicted Damage 414 | . 35 12 187 88 65 . . 27 Shots 24 | . 2 1 11 6 3 . . 1 Rammed . | . . . . . . . . . Targets Rammed . | . . . . . . . . . Kicked . | . . . . . . . . . Crushed . | . . . . . . . . . Highest Temperature 1046 | . 79 18 . 457 19 11 . 1046 Average Temperature 152 | . 20 6 . 105 9 5 . 416 Received Heat Transfer 1775 | . 168 . 285 405 246 437 . 234 Effects 39 | . . . . 2 . . . 37 Shutdowns 13 | . . . . 1 . . . 12 Energy Bleed 1 | . . . . . . . . 1 Interference 3 | . . . . 1 . . . 2 Matter Decay 3 | . . . . . . . . 3 Short Circuit 3 | . . . . . . . . 3 Damage (minor) 2 | . . . . . . . . 2 Damage (major) 11 | . . . . . . . . 11 Damage (core) 3 | . . . . . . . . 3 Siege Activations . | . . . . . . . . . Robots Corrupted . | . . . . . . . . . Combat Hostiles . | . . . . . . . . . Parts Fried 7 | . . . . 7 . . . . Impact Corruptions . | . . . . . . . . . Robots Melted . | . . . . . . . . . Combat Hostiles . | . . . . . . . . . Parts Melted . | . . . . . . . . . Heat Transferred 50 | . 50 . . . . . . . Parts Sabotaged . | . . . . . . . . . Parts Stolen . | . . . . . . . . . Parts Stripped . | . . . . . . . . . Power Chain Reactions 1 | . . . . 1 . . . . Alert | -11 -10 -10 -10 -8 -7 -6 -5 -5 ------- Run | Yrd Mat Min Sub Mat Fac Fac Fac DSF Peak Influence 471 | . 249 72 . 270 309 471 169 376 Initial 169 | . . . . . 105 74 169 103 Average 118 | . 56 9 . 84 188 255 169 191 Maximum Alert Level 2 | . 1 . . 1 1 2 . 1 Low Security (%) 75 | 100 93 100 . 90 53 34 100 65 Level 1 20 | . 6 . . 9 46 45 . 34 Level 2 3 | . . . . . . 19 . . Level 3 . | . . . . . . . . . Level 4 . | . . . . . . . . . Level 5 . | . . . . . . . . . High Security . | . . . . . . . . . Max Security . | . . . . . . . . . Sterilizations 1 | . . . . . . . . 1 Squads Dispatched 21 | . 1 . . 3 6 10 . 1 Investigation 7 | . 1 . . 1 3 2 . . Extermination 5 | . . . . . 2 3 . . Reinforcement 6 | . . . . 2 1 2 . 1 Assault . | . . . . . . . . . Garrison 3 | . . . . . . 3 . . Intercept . | . . . . . . . . . Searches Triggered . | . . . . . . . . . Construction Impeded 2 | . . . . 2 . . . . Haulers Reinforced 1 | . . . . . 1 . . . Active Scanning Responses . | . . . . . . . . . Cargo Convoy Interrupts . | . . . . . . . . . Stealth | -11 -10 -10 -10 -8 -7 -6 -5 -5 --------- Run | Yrd Mat Min Sub Mat Fac Fac Fac DSF Distress Signals 2 | . 1 . . 1 . . . . Communications Jammed . | . . . . . . . . . Distress Signals . | . . . . . . . . . Times Spotted 165 | . 22 3 34 23 22 49 . 12 Peak Tracking Total 6 | . 3 3 6 5 4 6 . 5 Tactical Retreats 13 | . 2 1 3 . . 6 . 1 Traps | -11 -10 -10 -10 -8 -7 -6 -5 -5 ------- Run | Yrd Mat Min Sub Mat Fac Fac Fac DSF Traps Triggered 7 | . 3 . 1 1 2 . . . Indirectly . | . . . . . . . . . Trap Hack Attempts . | . . . . . . . . . Triggered . | . . . . . . . . . Disarmed 6 | . 6 . . . . . . . Reprogrammed . | . . . . . . . . . Reused . | . . . . . . . . . Traps Extracted . | . . . . . . . . . Installed . | . . . . . . . . . Triggered . | . . . . . . . . . Machines | -11 -10 -10 -10 -8 -7 -6 -5 -5 ---------- Run | Yrd Mat Min Sub Mat Fac Fac Fac DSF Machines Disabled 16 | . 1 . 5 6 3 . . 1 Max in Single Turn 3 | . 1 . 3 3 1 . . 1 Garrison Access 3 | . . . . . 2 1 . . Machines Repaired . | . . . . . . . . . Machines Dismantled . | . . . . . . . . . Machines Sabotaged . | . . . . . . . . . Overloaded Fab Kills . | . . . . . . . . . Hacking | -11 -10 -10 -10 -8 -7 -6 -5 -5 --------- Run | Yrd Mat Min Sub Mat Fac Fac Fac DSF Machines Accessed 37 | . 8 . 1 7 10 10 1 . Terminals 20 | . 5 . . 5 5 4 1 . Fabricators 3 | . . . . . 1 2 . . Repair Stations 6 | . 1 . . 2 2 1 . . Recycling Units 4 | . 2 . . . . 2 . . Scanalyzers . | . . . . . . . . . Garrison Access 3 | . . . . . 2 1 . . Total Hacks 101 | . 14 . 9 16 37 23 2 . Successful 74 | . 12 . 9 10 28 14 1 . Failed 27 | . 2 . . 6 9 9 1 . Catastrophic . | . . . . . . . . . Database Lockouts . | . . . . . . . . . Manual 4 | . . . . 2 . 2 . . Terminals 41 | . 8 . . 10 13 8 2 . Fabricators 5 | . . . . . 1 4 . . Repair Stations 30 | . 3 . . 6 18 3 . . Recycling Units 8 | . 3 . . . . 5 . . Scanalyzers . | . . . . . . . . . Garrison Access 8 | . . . . . 5 3 . . Terminal Hacks 38 | . 6 . 9 7 10 5 1 . Record 15 | . 1 . 8 2 4 . . . Prototype ID Bank 3 | . . . . 1 1 1 . . Open DSF 5 | . . . . . 2 2 1 . Alert Level 3 | . . . . 1 2 . . . Unreport Threat 1 | . . . . 1 . . . . Disarm Traps 1 | . 1 . . . . . . . Dispatch Records 1 | . . . . . 1 . . . Reinforcement Status 1 | . 1 . . . . . . . Recall Investigation 1 | . . . . . . 1 . . Recall Assault 1 | . . . . . . 1 . . Hauler Manifests 1 | . 1 . . . . . . . Registered Components 2 | . 1 . . 1 . . . . Zone Layout 2 | . 1 . . 1 . . . . Derelict Proto ID Bank 1 | . . . 1 . . . . . Fabricator Hacks 3 | . . . . . 1 2 . . Network Status 2 | . . . . . 1 1 . . Build 1 | . . . . . . 1 . . Repair Station Hacks 24 | . 3 . . 3 15 3 . . Scan Component 14 | . 2 . . 2 8 2 . . Repair 10 | . 1 . . 1 7 1 . . Recycling Unit Hacks 6 | . 3 . . . . 3 . . Report Inventory 4 | . 2 . . . . 2 . . Retrieve Components 2 | . 1 . . . . 1 . . Scanalyzer . | . . . . . . . . . Garrison Access Hacks 3 | . . . . . 2 1 . . Seal Access 3 | . . . . . 2 1 . . Unauthorized Hacks . | . . . . . . . . . Terminals . | . . . . . . . . . Fabricators . | . . . . . . . . . Repair Stations . | . . . . . . . . . Recycling Units . | . . . . . . . . . Scanalyzers . | . . . . . . . . . Garrison Access . | . . . . . . . . . Data Cores Recovered 1 | . . . . . 1 . . . Used 1 | . . . . . 1 . . . Hacking Detections 26 | . 4 . . 4 9 8 1 . Full Trace Events 7 | . 1 . . 1 3 2 . . Feedback Events . | . . . . . . . . . Feedback Blocked . | . . . . . . . . . Robot Schematics Acquired . | . . . . . . . . . Robots Built 2 | . . . . . . 2 . . Authchips . | . . . . . . . . . Time 40 | . . . . . . 40 . . Total Robot Build Rating 2 | . . . . . . 2 . . Part Schematics Acquired . | . . . . . . . . . Parts Built . | . . . . . . . . . Authchips . | . . . . . . . . . Time . | . . . . . . . . . Total Part Build Rating . | . . . . . . . . . Parts Repaired 10 | . 1 . . 1 7 1 . . Time 389 | . 26 . . 38 275 50 . . Parts Recycled . | . . . . . . . . . Recycled Matter . | . . . . . . . . . Retrieved Matter . | . . . . . . . . . Retrieved Components 20 | . 10 . . . . 10 . . Parts Scanalyzed . | . . . . . . . . . Part Schematics Acquired . | . . . . . . . . . Parts Damaged . | . . . . . . . . . Bothacking | -11 -10 -10 -10 -8 -7 -6 -5 -5 ------------ Run | Yrd Mat Min Sub Mat Fac Fac Fac DSF Used RIF Installer . | . . . . . . . . . Robots Hacked 6 | . . . . . 3 3 . . Non-combat 4 | . . . . . 2 2 . . Combat 2 | . . . . . 1 1 . . Robot Hacks Applied 11 | . . . . . 7 4 . . parse_system 6 | . . . . . 4 2 . . no_distress 3 | . . . . . 2 1 . . find_chute 1 | . . . . . 1 . . . check_alert 1 | . . . . . . 1 . . Relay Couplers Released . | . . . . . . . . . Fabnet Peak Effective % . | . . . . . . . . . Robots Rewired . | . . . . . . . . . Allies Hacked . | . . . . . . . . . Hacks Repelled . | . . . . . . . . . Allies | -11 -10 -10 -10 -8 -7 -6 -5 -5 -------- Run | Yrd Mat Min Sub Mat Fac Fac Fac DSF Total Allies 2 | . . . . . . 2 . . Largest Group 2 | . . . . . . 2 . . Highest-Rated Group 20 | . . . . . . 20 . . Highest-Rated Ally 10 | . . . . . . 10 . . Total Orders . | . . . . . . . . . Ally Attacks . | . . . . . . . . . Total Damage . | . . . . . . . . . Kills . | . . . . . . . . . Allies Corrupted . | . . . . . . . . . Allies Melted . | . . . . . . . . . Intel | -11 -10 -10 -10 -8 -7 -6 -5 -5 ------- Run | Yrd Mat Min Sub Mat Fac Fac Fac DSF Robot Analysis Total . | . . . . . . . . . Derelict Logs Recovered 4 | . . 2 2 . . . . . Drone Launches . | . . . . . . . . . Drone Recoveries . | . . . . . . . . . Exploration | -11 -10 -10 -10 -8 -7 -6 -5 -5 ------------- Run | Yrd Mat Min Sub Mat Fac Fac Fac DSF Turns Passed 11281 | 70 2303 958 4096 1081 931 1464 3 375 Spaces Moved 5835 | 43 902 481 1793 445 1072 952 3 144 Core 102 | 10 80 . . . . 6 . 6 Treads 1977 | 33 432 . 1209 303 . . . . Legs 1537 | . 390 481 584 16 . . . 66 Wheels . | . . . . . . . . . Hover 922 | . . . . . 44 852 3 23 Flight 1297 | . . . . 126 1028 94 . 49 Fastest Speed 28 | 50 160 190 120 101 28 48 58 37 Average Speed 163 | 134 233 190 218 177 58 94 58 162 Slowest Speed 1160 | 160 550 190 1160 740 320 595 58 850 Overloaded Moves . | . . . . . . . . . Propulsion Burnouts . | . . . . . . . . . Robots Hopped . | . . . . . . . . . Cave-ins Triggered . | . . . . . . . . . Exploration Rate (%) 57 | 4 97 100 76 38 23 30 . 95 Regions Visited 8 Branch Regions 2 Pre-discovered Areas 1 | . . . 1 . . . . . Known Exits Taken 1 | . . . . . . . 1 . Unknown Exits Taken 7 | 1 1 1 1 1 1 1 . . Scrap Searched 10 | . . 3 7 . . . . . Spaces Dug . | . . . . . . . . . Terrain Destroyed 535 | . 86 8 167 131 68 . . 75 Melee . | . . . . . . . . . Projectile . | . . . . . . . . . AOE 535 | . 86 8 167 131 68 . . 75 Terrain Rammed . | . . . . . . . . . Walls Destroyed . | . . . . . . . . . Machines Disabled . | . . . . . . . . . Actions | -11 -10 -10 -10 -8 -7 -6 -5 -5 --------- Run | Yrd Mat Min Sub Mat Fac Fac Fac DSF Total 7025 | 55 1033 521 1906 652 1293 1325 3 237 Wait 472 | . 59 34 8 98 67 175 . 31 Move 5827 | 42 901 480 1792 444 1071 951 2 144 Hop . | . . . . . . . . . Pick Up 137 | 7 16 2 24 22 24 27 . 15 Fast Attach 14 | . . . . 2 6 6 . . Attach 96 | 6 5 . 9 14 21 25 1 15 Detach 6 | . . . . . 5 . . 1 Swap 25 | . 3 1 5 7 6 3 . . Drop 49 | . 2 . 8 12 14 9 . 4 Fire 194 | . 47 4 55 53 17 7 . 11 Melee 182 | . . . . . 44 122 . 16 Ram . | . . . . . . . . . Kick . | . . . . . . . . . Crush . | . . . . . . . . . Escape Stasis 18 | . . . . . 18 . . . Rewire . | . . . . . . . . . Trap . | . . . . . . . . . Miscellaneous 5 | . . . 5 . . . . . Route ------- -11/Scrapyard -10/Materials (discovered 5 exits: [*Mat x3] / *Min x2) -10/Mines (discovered 3 exits: [*Mat x2] / *Sub) -10/Subcaves (discovered 3 exits: *Mat x2 / [*Rec]) -8/Materials -7/Factory (discovered 3 exits: *Fac / [*Low x2]) -6/Factory (discovered 3 exits: *Fac x2 / [*Ext]) -5/Factory -5/DSF (discovered 1 exit: [*Gar]) History --------- Turn | Location | Event 11 | -11/Scrapyard | Discovered new exit (range 15) 71 | -11/Scrapyard | Entered Materials 281 | -10/Materials | Discovered new exit (range 12) 312 | -10/Materials | Build established: Mutant 513 | -10/Materials | Discovered new exit (range 12) 571 | -10/Materials | Derelicts attacked the area 619 | -10/Materials | Discovered new exit (range 12) 1031 | -10/Materials | Repaired Lgt. Treads 1038 | -10/Materials | Discovered new exit (range 15) 1670 | -10/Materials | Discovered new exit (range 14) 2374 | -10/Materials | Entered Mines 2491 | -10/Mines | Received a Rocket Launcher from a helpful Derelict 2594 | -10/Mines | Discovered new exit (range 10) 2752 | -10/Mines | Learned Materials terminal intel 3115 | -10/Mines | Discovered new exit (range 3) 3323 | -10/Mines | Discovered new exit (range 5) 3332 | -10/Mines | Entered Subcaves 3366 | -10/Subcaves | Learned Materials interactive machine intel 3410 | -10/Subcaves | Ambushed by swarm of Subdwellers 3422 | -10/Subcaves | Ambushed by angry Subdweller bent on revenge 3422 | -10/Subcaves | Ambushed by Subdwellers from Twisted Machinery 3570 | -10/Subcaves | Discovered new exit (range 13) 3579 | -10/Subcaves | Lost 3 allies 3754 | -10/Subcaves | Shifting Twisted Machinery released Sub. Power Source 3786 | -10/Subcaves | Build established: Scavenger-Mutant 3866 | -10/Subcaves | A swath of the cavern ceiling suddenly collapsed 3895 | -10/Subcaves | Discovered new exit (range 8) 3959 | -10/Subcaves | Discovered new exit (range 14) 3982 | -10/Subcaves | Ambushed by Subdweller buried in earth 4405 | -10/Subcaves | Build established: Hauler-Mutant 4425 | -10/Subcaves | Ambushed by Subdweller buried in earth 4437 | -10/Subcaves | Core integrity fell below 50% 4467 | -10/Subcaves | Lost 4 parts (1n3w) 5714 | -10/Subcaves | Visited 4L-MR0's lab 5813 | -10/Subcaves | Found Gun Armor 6040 | -10/Subcaves | Build established: Mutant 6442 | -10/Subcaves | A swath of the cavern ceiling suddenly collapsed 7000 | -10/Subcaves | Shifting Twisted Machinery released Shrapnel Trap 7428 | -10/Subcaves | Entered Materials 7428 | -8/Materials | Evolved 4 slots: Propulsion x2, Utility x1, Weapon x1 7429 | -8/Materials | Loaded intel: 18 interactive machine locations 7430 | -8/Materials | Loaded intel: 11 terminal locations 7431 | -8/Materials | Attached Gun Armor, gained temporary slots: Weapon x2 7932 | -8/Materials | Repaired Lgt. Nuclear Core? 7972 | -8/Materials | Build established: Scavenger-Tank 8342 | -8/Materials | System corruption reached 10% 8410 | -8/Materials | Discovered new exit (range 16) 8509 | -8/Materials | Entered Factory 8509 | -7/Factory | Evolved 2 slots: Utility x2 8716 | -7/Factory | Repaired Remote Datajack? 8730 | -7/Factory | Discovered new exit (range 13) 8833 | -7/Factory | Repaired Imp. Flight Unit 8833 | -7/Factory | Repaired Imp. Flight Unit 8833 | -7/Factory | Repaired Core Shielding 8859 | -7/Factory | Repaired Sml. Battery 9088 | -7/Factory | Repaired Seismic Detector? 9150 | -7/Factory | Repaired Imp. Flight Unit? 9250 | -7/Factory | Discovered new exit (range 16) 9354 | -7/Factory | Lost 3 parts (1n1u1w) 9359 | -7/Factory | Discovered new exit (range 9) 9440 | -7/Factory | Entered another Factory area 9440 | -6/Factory | Evolved 2 slots: Power x1, Utility x1 9517 | -6/Factory | Fabricated T-07 Excavator (x2) 9697 | -6/Factory | Build established: Hacker-Mutant 9805 | -6/Factory | Discovered new exit (range 16) 9836 | -6/Factory | Discovered new exit (range 15) 10067 | -6/Factory | Lost 3 parts (1p1n1u) 10515 | -6/Factory | Garrison activated, responded to threat 10527 | -6/Factory | Repaired Gravmag Array? 10618 | -6/Factory | Lost 4 parts (1p1n1u1w) 10760 | -6/Factory | Core integrity fell below 50% 10788 | -6/Factory | Lost 6 parts (2p3n1u) 10867 | -6/Factory | System corruption reached 10% 10902 | -6/Factory | Discovered new exit (range 5) 10904 | -6/Factory | Entered another Factory area 10904 | -5/Factory | Evolved 2 slots: Propulsion x1, Weapon x1 10906 | -5/Factory | Lost 6 parts (2p4n) 10907 | -5/Factory | Identified exit to DSF 10907 | -5/Factory | Entered DSF 10958 | -5/DSF | Additional patrols routed to DSF 11044 | -5/DSF | Core integrity fell below 50% 11080 | -5/DSF | Lost 11 parts (1p4n4u2w) 11161 | -5/DSF | Sterilization system engaged 11181 | -5/DSF | Ambient heat levels rising (+10) 11196 | -5/DSF | Ambient heat levels rising (+10) 11202 | -5/DSF | Discovered new exit (range 11) 11211 | -5/DSF | Ambient heat levels rising (+10) 11226 | -5/DSF | Ambient heat levels rising (+10) 11241 | -5/DSF | Ambient heat levels rising (+10) 11254 | -5/DSF | Core integrity fell below 20% 11256 | -5/DSF | Ambient heat levels rising (+10) 11271 | -5/DSF | Ambient heat levels rising (+10) 11283 | -5/DSF | Core destroyed Last Messages --------------- Overheating: Matter decay (-35). Overheating: Energy Well damaged (-14). ALERT: Ambient heat levels +10. Overheating: System interference. Imp. Targeting Computer temporarily disabled. Overheating: Adv. ECM Suite damaged (-18). Overheating: Carbon-fiber Leg damaged (-22). Overheating: Broken Lrn. Missile Launcher damaged (-11). Power failure, Lgt. Fission Core shutdown. Power failure, Rnf. Fission Core shutdown. Overheating: Broken Lrn. Missile Launcher damaged (-7). Overheating: Lgt. Fission Core damaged (-16). Overheating: Carbon-fiber Leg damaged (-27). Overheating: Broken Hvy. Mass Driver damaged (-45). Power failure, Lgt. Fission Core shutdown. Overheating: Core damaged (-100). Overheating: Broken Flexi-carbon Leg damaged (-28). Power failure, Rnf. Fission Core shutdown. Overheating: Core damaged (-190). [Achievement: 10k Club] Map ----- +----------------------------------------------------+ | | | | | | | | | | | | | | | | | | | | | | | | | | | | | | | ?????????????????????????????????????????????? | | ?????????????????????????????????????????????? | | ?????????????????????????????????????????????? | | ?????????????????????????????????????????????? | | ???????????????????###????????????""?????????? | | ???????????????##### ####?????????"#?????????? | | ???????????????## #???????##"####??????? | | ???????????????# **]]] #########"""""##?????? | | ???????????????# **]]] # # #""" " #?#???? | | ??????????????## < #"#???? | | ??????????????# @ ""#???? | | ??????????????# ##!!!# # [ ####???? | | ??????????????### # !!!# # ! # ###????? | | ????????????????# ]]######## [ # #????? | | ???????????????## ]] #????# # #????? | | ???????????????# ]] ##????#!! #????? | | ???????????????# ## % ##?????## #????? | | ???????????????##]] #?????# #????? | | ???????????????# ]] #?????# # ##????? | | ???????????????# ]] #?????# ###?????? | | ???####?????##### ####??### ##???????? | | ??# ?#!??#!!!### ###[[[#? ## ==???????? | | ??# ##!!!#!!!#! ##[[[# ## ==#??????? | | ??#== ^ %% [* [ % " ^ #??????? | | ??#== ^ *%%[ "%" ^ #??????? | | ??#== ^ %% % %* " ^^ #??????? | | ??#[[ ##!!!#==="#! "#!!!#[[[## #??????? | | ??#[[ ##!!!#===###[%%###!!!#[?[## #??????? | | ??### ####?####### =###?###?????#####??????? | | ???# !!#??????#!! ==#????????????????????? | | ???# !!#??????#!! ==#????????????????????? | | ???# !!???????#!! ==#????????????????????? | | ???## ###??????### ###????????????????????? | | ???#! !!#??????#[[ !!#????????????????????? | | ???# !#??????#[[ !!#????????????????????? | +----------------------------------------------------+ Best States ------------- Heat Dissipation 40 Energy Generation 32 Energy Capacity 1340 Matter Stores 300 Matter Capacity 300 Sight Range 16 Robot Scan Range 16 Terrain Scan Density 10 ECM Strength 2 Cloak Strength 2 Armor Coverage 860 Resistance: KI 40 Resistance: TH 20 Resistance: EX 20 Resistance: EM 20 Resistance: I 20 Resistance: S 20 Resistance: P 20 Core Shielding 20 Evasion (%) 64 Targeting Accuracy 6 Core Analysis 6 Recoil Reduction 4 Offensive Hacking 20 Defensive Hacking 10 Item Schematics ----------------- None Robot Schematics ------------------ None Fabricated ------------ T-07 Excavator | x2 | -6/Factory | Preloaded Alien Tech Used ----------------- None Achievements -------------- 10k Club Party Time System Compromised Tank Challenges ------------ None Game ------ Seed CorruptionMappingPit Manual? 0 Play Time 02:13:46 Cumulative 9.5 hours Start 2024.08.07 @ 15:55:05 End 2024.08.07 @ 21:30:45 Sessions 5 Manual Loads 0 Difficulty Adventurer Special Mode None Game No. 11 Rogue 4 Adventurer 7 Explorer 0 Win Type - Total 0 Types 0/0/0/0/0/0/0/0/0 Lore% 6 Gallery% 17 Achievement% 14 Wizard Run 0 Options --------- Layout 1 ASCII 0 Keyboard 0 Movement Mouse Keybinds 0 Fullscreen 1 Font 24/Smallcaps Map View 76x35 Zoom Use 0% Tactical HUD 0 Map Filters NONE Filters NONE Steam 1 RUN: 6ec3adb1-4d4e-4ca6-a00c-5c4dcdb2f475